bitfinex/quotes_ETHUSD_20241129
["timestamp","ask_amount","ask_price","bid_price","bid_amount"]
[1732924236297,3.12506,3598.1,3597.5,2.7797]
[1732924236497,0.06011371,3597.9,3597.5,2.7797]
[1732924236654,3.12506,3598.1,3597.5,2.7797]
[1732924236852,0.06015809,3598.0,3597.5,2.7797]
[1732924237852,0.287845,3599.2,3597.2,1.99495217]
[1732924237853,0.3458,3598.4,3597.8,0.7898]
[1732924238060,2.77909,3598.3,3597.8,0.7898]
[1732924238257,2.8392909,3598.3,3597.8,0.7898]
[1732924239319,2.8392909,3598.3,3597.8,3.56926]
[1732924240303,0.0602009,3598.3,3597.8,3.56926]
[1732924240493,0.0602009,3598.3,3597.9,2.77939]
[1732924241091,0.0602009,3598.3,3597.8,0.7898]
[1732924241305,0.0602009,3598.3,3597.8,3.56922]
[1732924241488,0.0602009,3598.3,3597.9,2.77939]
[1732924241687,0.0602009,3598.3,3598.1,2.77916]
[1732924241891,2.77881,3598.7,3598.1,0.634835]
[1732924242208,0.06021109,3598.2,3597.8,3.56925]
[1732924242414,2.77915,3598.3,3597.8,0.7898]
[1732924242582,0.3458,3598.2,3597.5,3.54107]
[1732924242779,2.77929,3598.1,3597.5,3.54107]
[1732924243502,2.77929,3598.1,3597.5,0.7614]
[1732924243722,2.77941,3597.9,3597.4,2.77977]
[1732924244068,2.77941,3597.9,3597.3,2.77984]
[1732924244315,2.77941,3597.9,3597.4,2.77978]
[1732924245172,0.06012625,3597.8,3597.4,2.77978]
[1732924246725,0.06012625,3597.8,3597.5,2.7797]
[1732924246884,2.77929,3598.1,3597.4,2.77978]
[1732924247220,2.77941,3597.9,3597.4,2.77978]
[1732924247939,2.77941,3597.9,3597.3,2.77985]
[1732924248093,2.77956,3597.7,3597.2,0.7614]
[1732924248278,3.12536,3597.7,3597.2,0.7614]
[1732924248696,0.06004628,3597.6,3597.2,3.54131]
[1732924250224,0.06004628,3597.6,3597.3,2.77981]
[1732924250526,2.77952,3597.8,3597.3,0.75263322]
[1732924250731,0.06002733,3597.5,3597.2,3.54132]
[1732924250926,2.77952,3597.8,3597.2,3.54132]
[1732924251104,0.06001021,3597.4,3597.2,3.54132]
[1732924251303,2.77952,3597.8,3597.3,2.77986]
[1732924252620,0.06004151,3597.7,3597.3,2.77986]
[1732924253000,2.77952,3597.8,3597.3,2.77986]
[1732924253203,0.06012761,3597.6,3597.3,2.77986]
[1732924253499,0.06010381,3597.5,3597.4,2.77976]
[1732924253821,0.3458,3597.9,3597.4,2.77976]
[1732924253990,0.06017066,3597.5,3597.4,2.77976]
[1732924254189,2.77924,3598.1,3597.4,3.411869]
[1732924254430,0.3458,3598.2,3597.7,2.77954]
[1732924254592,2.77913,3598.3,3597.7,3.53514]
[1732924254788,2.77918,3598.2,3597.7,3.53514]
[1732924255522,2.77918,3598.2,3597.7,0.7556]
[1732924255721,3.369583,3598.2,3597.7,0.7556]
[1732924256025,3.369583,3598.2,3597.4,0.7556]
[1732924256325,0.06023856,3598.1,3597.4,0.7556]
[1732924256490,0.06023856,3598.1,3597.5,2.77966]
[1732924257168,2.83947856,3598.1,3597.6,2.77961]
[1732924257717,3.12523,3597.9,3597.4,0.7556]
[1732924257906,3.12523,3597.9,3597.4,3.53538]
[1732924258099,0.06020749,3597.8,3597.4,3.53538]
[1732924258895,2.77933,3598.0,3597.5,2.77968]
[1732924259091,0.060177,3597.7,3597.5,2.77968]
[1732924259290,2.77933,3598.0,3597.4,3.53536]
[1732924259499,0.06015988,3597.6,3597.4,3.53536]
[1732924259792,2.77933,3598.0,3597.4,3.53533]
[1732924260004,0.06013608,3597.5,3597.4,3.53533]
[1732924260205,0.3458,3598.1,3597.4,3.53533]
[1732924260407,3.715462,3598.1,3597.6,2.77961]
[1732924260628,0.06021497,3598.0,3597.8,2.77946]
[1732924261249,3.12491,3598.3,3597.6,2.77956]
[1732924261616,3.12491,3598.3,3597.7,2.7795]
[1732924261812,3.0,3598.4,3597.8,2.77945]
[1732924262049,6.47742122,3598.4,3597.9,0.7556]
[1732924262252,3.12472,3598.6,3598.0,2.77925]
[1732924262514,2.77892,3598.6,3598.0,2.77925]
[1732924263053,2.77892,3598.6,3597.9,0.7556]
[1732924263054,2.77898,3598.5,3597.9,3.53494]
[1732924263212,2.77898,3598.5,3598.0,2.77931]
[1732924263415,0.06029368,3598.4,3598.0,2.77931]
[1732924267651,3.12489,3598.3,3597.8,2.77946]
[1732924268015,0.0602915,3598.2,3597.8,2.77946]
[1732924268548,0.06027439,3598.1,3597.8,2.77946]
[1732924268750,3.12489,3598.3,3597.8,2.77946]
[1732924268918,0.06025727,3598.0,3597.8,2.77946]
[1732924269119,3.12489,3598.3,3597.8,2.77946]
[1732924269321,0.06028046,3597.9,3597.8,2.77946]
[1732924269617,3.12489,3598.3,3597.8,2.77946]
[1732924269849,0.06024016,3597.9,3597.8,2.77946]
[1732924270048,3.12489,3598.3,3597.6,3.61051]
[1732924270049,2.77922,3598.2,3597.6,3.61051]
[1732924270371,2.77926,3598.1,3597.6,3.61051]
[1732924270655,2.77933,3598.0,3597.6,0.8309]
[1732924270951,0.06024016,3597.9,3597.6,0.8309]
[1732924271267,0.3458,3598.3,3597.8,2.77947]
[1732924271553,2.77893,3598.5,3598.0,2.77932]
[1732924271761,0.06020677,3598.2,3598.0,2.77932]
[1732924271966,2.77893,3598.5,3598.0,2.77932]
[1732924272117,0.06023665,3598.1,3598.0,2.77932]
[1732924272313,2.77893,3598.5,3598.0,2.77932]
[1732924272518,3.369287,3598.5,3598.0,2.77932]
[1732924272951,0.060241,3598.4,3598.0,2.77932]
[1732924274064,0.060241,3598.4,3598.1,0.26020342]
[1732924274220,0.060241,3598.4,3598.2,0.26020342]
[1732924274565,0.060241,3598.4,3598.3,0.26020342]
[1732924275469,0.3458,3598.9,3598.3,0.26020342]
[1732924275633,0.3458,3598.9,3598.2,2.7791]
[1732924275634,0.05947188,3598.4,3598.2,2.7791]
[1732924275815,2.77875,3598.8,3598.2,2.7791]
[1732924276044,0.05954753,3598.3,3598.2,2.7791]
[1732924276221,2.77878,3598.7,3598.2,2.7791]
[1732924276454,0.05954753,3598.3,3598.2,2.7791]
[1732924276659,2.77878,3598.7,3598.2,2.7791]
[1732924276849,0.05956442,3598.3,3598.2,2.7791]
[1732924277019,2.77878,3598.7,3598.2,2.7791]
[1732924277221,0.05957111,3598.3,3598.2,2.7791]
[1732924277441,3.12422,3599.2,3598.5,2.77893]
[1732924277645,2.77832,3599.3,3598.7,2.77873]
[1732924277850,3.12405,3599.4,3598.8,2.77869]
[1732924278053,2.77815,3599.6,3598.9,2.77861]
[1732924278356,2.77815,3599.6,3599.0,3.60943]
[1732924278515,0.3458,3599.7,3599.1,2.77844]
[1732924278720,0.3458,3599.7,3599.0,3.60943]
[1732924278921,2.83283753,3599.6,3599.0,3.60943]
[1732924280020,2.77817,3599.5,3599.0,3.60943]
[1732924280353,2.83311411,3599.4,3599.0,0.8309]
[1732924280562,0.05485411,3599.4,3599.0,0.8309]
[1732924280719,3.12382,3599.7,3599.1,2.77842]
[1732924281164,2.77792,3599.9,3599.3,2.77827]
[1732924281531,2.77795,3599.8,3599.2,0.51926658]
[1732924281856,2.77801,3599.7,3599.2,2.77839]
[1732924282224,2.77801,3599.7,3599.1,3.29755596]
[1732924282448,2.77801,3599.7,3599.1,2.77844]
[1732924282644,0.05490181,3599.6,3599.1,2.77844]
[1732924282857,0.05490181,3599.6,3599.5,2.77816]
[1732924283025,3.1236,3600.0,3599.3,2.77831]
[1732924283231,0.05504534,3599.6,3599.4,0.7511]
[1732924283469,2.7778,3600.0,3599.4,0.7511]
[1732924283982,0.05513452,3599.9,3599.4,0.7511]
[1732924284275,2.83298452,3599.9,3599.4,0.7511]
[1732924285354,2.77806,3599.7,3599.0,0.7511]
[1732924285532,2.77808,3599.6,3599.0,0.7511]
[1732924285738,2.8331801,3599.6,3599.1,0.47348522]
[1732924285972,2.8332001,3599.6,3599.0,0.7511]
[1732924286278,2.7784,3599.2,3598.7,0.7511]
[1732924286571,0.05505513,3599.1,3598.7,0.7511]
[1732924287134,2.7784,3599.2,3598.7,0.7511]
[1732924287338,0.05503803,3599.0,3598.7,1.381994]
[1732924287554,2.7784,3599.2,3598.7,1.381994]
[1732924287784,0.05496268,3598.9,3598.2,2.77915]
[1732924287990,2.77868,3598.9,3598.3,3.53018]
[1732924288144,0.05494558,3598.8,3598.4,0.353018]
[1732924288343,0.05494558,3598.8,3598.0,2.7793]
[1732924288344,2.77905,3598.4,3598.0,0.7511]
[1732924288888,2.77918,3598.2,3598.0,0.7511]
[1732924289172,0.05477968,3598.1,3598.0,0.7511]
[1732924289593,2.77905,3598.4,3598.0,0.7511]
[1732924289940,2.77895,3598.5,3598.0,0.7511]
[1732924290142,0.05469937,3598.3,3598.0,0.7511]
[1732924290337,2.77903,3598.4,3598.0,1.382093]
[1732924290615,2.77918,3598.2,3597.7,0.55]
[1732924290743,2.77918,3598.2,3597.6,0.7511]
[1732924290744,2.77925,3598.1,3597.6,3.53072]
[1732924291066,2.77925,3598.1,3597.7,0.75156222]
[1732924291453,2.77932,3598.0,3597.2,0.7511]
[1732924291680,0.3458,3598.1,3597.2,0.7511]
[1732924291681,2.77977,3597.5,3597.2,0.7511]
[1732924291854,2.77971,3597.5,3597.2,0.7511]
[1732924292056,2.77969,3597.6,3597.2,1.104222]
[1732924292565,2.77969,3597.6,3596.3,2.7806]
[1732924292566,2.78024,3596.9,3596.3,2.78058]
[1732924292773,2.78009,3597.0,3596.1,0.7511]
[1732924292967,2.78009,3597.0,3596.4,2.7805]
[1732924293785,0.05397353,3596.9,3596.3,2.7806]
[1732924293980,2.78018,3596.9,3596.3,2.7806]
[1732924294283,0.05394972,3596.8,3596.3,2.7806]
[1732924294490,0.05394972,3596.8,3596.4,0.631248]
[1732924294848,0.05394972,3596.8,3596.4,3.411768]
[1732924295048,2.78014,3597.0,3596.4,3.411768]
[1732924295276,0.0538349,3596.7,3596.4,3.411768]
[1732924295468,2.78014,3597.0,3596.4,3.411768]
[1732924295670,0.05381777,3596.6,3596.4,0.631248]
[1732924295871,2.78017,3596.9,3596.4,0.631248]
[1732924296486,0.05385202,3596.8,3596.4,0.631248]
[1732924296653,2.83412202,3596.8,3596.1,0.7511]
[1732924296861,2.83412202,3596.8,3596.2,2.7807]
[1732924297777,0.05385202,3596.8,3596.3,2.78062]
[1732924299272,2.83411202,3596.8,3596.1,3.53188]
[1732924299758,2.83411202,3596.8,3596.2,0.63128]
[1732924299954,2.83411202,3596.8,3596.2,3.41198]
[1732924300768,0.05385202,3596.8,3596.2,0.63128]
[1732924301095,0.05385202,3596.8,3596.4,2.78055]
[1732924301400,2.7801,3597.0,3596.4,2.78055]
[1732924301401,0.05203698,3596.7,3596.4,2.78055]
[1732924301609,2.7801,3597.0,3596.4,2.78055]
[1732924301764,0.05207123,3596.9,3596.4,2.78055]
[1732924302106,0.05207123,3596.9,3596.4,3.41456536]
[1732924303799,0.05207123,3596.9,3596.5,2.78044]
[1732924303996,3.12576,3597.2,3596.5,2.78044]
[1732924304209,0.3458,3598.4,3597.2,2.77993]
[1732924304506,2.77955,3597.7,3597.0,2.78007]
[1732924305292,0.3458,3597.8,3597.2,2.77993]
[1732924305682,0.0522737,3597.7,3597.2,2.77993]
[1732924305872,2.8318237,3597.7,3597.2,2.77993]
[1732924306072,2.77955,3597.7,3597.2,2.77993]
[1732924307074,2.77955,3597.7,3597.0,2.78008]
[1732924307261,2.77955,3597.7,3596.8,2.78021]
[1732924307262,0.590477,3597.7,3596.7,0.14708176]
[1732924307465,0.3458,3597.1,3596.4,2.7805]
[1732924307660,2.78009,3597.0,3596.4,2.7805]
[1732924307966,0.3458,3597.1,3596.3,0.809]
[1732924308371,0.3458,3597.1,3596.7,2.78027]
[1732924309206,2.77979,3597.4,3596.8,2.78021]
[1732924309363,0.3458,3597.5,3596.9,2.78017]
[1732924309565,0.05230845,3597.4,3596.9,0.809]
[1732924309762,0.3458,3597.8,3597.3,2.77981]
[1732924310500,3.12528,3597.8,3597.3,2.77981]
[1732924310908,3.12528,3597.8,3597.2,2.77993]
[1732924311880,0.3458,3597.8,3596.9,0.809]
[1732924312123,0.3458,3597.8,3597.6,2.77962]
[1732924312268,0.3458,3598.1,3597.6,2.77962]
[1732924312972,0.05237894,3598.0,3597.6,2.77962]
[1732924313905,0.05237894,3598.0,3597.4,2.77978]
[1732924314105,2.83170894,3598.0,3597.4,2.77978]
[1732924315509,2.83170894,3598.0,3597.4,2.77973]
[1732924315723,2.83170894,3598.0,3597.4,3.335694]
[1732924317303,0.05237894,3598.0,3597.7,2.77949]
[1732924317673,0.05237894,3598.0,3597.5,2.7797]
[1732924318010,0.05237894,3598.0,3597.6,2.77962]
[1732924318671,0.05237894,3598.0,3597.5,2.77967]
[1732924318872,0.05237894,3598.0,3597.6,2.77961]
[1732924321419,0.05237894,3598.0,3597.7,2.77954]
[1732924322685,0.05237894,3598.0,3597.5,3.4720864]
[1732924322885,0.05237894,3598.0,3597.6,2.77958]
[1732924323885,0.05237894,3598.0,3597.7,2.77955]
[1732924324080,0.05237894,3598.0,3597.8,2.77946]
[1732924324344,0.05237894,3598.0,3597.6,2.77957]
[1732924324627,0.3458,3598.4,3597.7,2.7795]
[1732924324628,0.0526667,3597.9,3597.7,2.7795]
[1732924324793,2.77909,3598.3,3597.8,2.77947]
[1732924324978,0.3458,3598.4,3597.8,2.77947]
[1732924324979,0.3458,3598.4,3597.8,2.77942]
[1732924325280,3.12485,3598.4,3597.8,2.77942]
[1732924327123,3.12485,3598.4,3597.8,2.77943]
[1732924327937,0.05261864,3598.3,3597.8,2.77943]
[1732924329586,2.83170864,3598.3,3597.8,2.77943]
[1732924330828,0.05261864,3598.3,3597.9,0.41583507]
[1732924331039,0.05261864,3598.3,3597.8,2.77943]
[1732924331527,2.83170864,3598.3,3597.8,2.77943]
[1732924332024,0.05261864,3598.3,3598.0,3.60472]
[1732924332276,0.05261864,3598.3,3598.0,0.8254]
[1732924332399,0.05261864,3598.3,3597.8,3.60484]
[1732924332588,0.05261864,3598.3,3597.8,1.463843]
[1732924332794,2.77896,3598.5,3597.9,2.77939]
[1732924333491,2.7791,3598.3,3597.8,0.8254]
[1732924333801,2.77916,3598.3,3597.7,2.77954]
[1732924335387,2.77924,3598.2,3597.5,2.77967]
[1732924335634,2.8318767,3598.2,3597.6,0.360507]
[1732924335930,0.0526367,3598.2,3597.6,0.360507]
[1732924336171,0.0526367,3598.2,3597.8,2.77944]
[1732924336369,3.12481,3598.4,3597.8,2.77944]
[1732924336526,0.05271446,3598.1,3597.8,2.77944]
[1732924336876,0.05269735,3598.0,3597.8,2.77944]
[1732924337242,3.12481,3598.4,3597.8,2.77944]
[1732924337460,2.83196515,3598.3,3597.8,2.77944]
[1732924338745,2.83196515,3598.3,3597.6,2.77958]
[1732924339143,2.83196515,3598.3,3597.7,2.77954]
[1732924339964,2.77925,3598.1,3597.5,2.77967]
[1732924340163,2.83196515,3598.3,3597.6,2.77962]
[1732924340366,0.05269735,3598.0,3597.6,2.77962]
[1732924340568,3.12481,3598.4,3597.7,2.77955]
[1732924340775,0.05268024,3597.9,3597.8,3.60481]
[1732924340931,1.20611851,3599.0,3597.7,2.77955]
[1732924340932,0.56480862,3599.2,3598.5,2.77886]
[1732924341277,2.83140188,3599.1,3598.4,0.8254]
[1732924341473,2.83140188,3599.1,3598.5,2.77887]
[1732924343866,0.05293188,3599.1,3598.6,2.77879]
[1732924345528,0.05293188,3599.1,3598.4,3.6044]
[1732924345759,0.05293188,3599.1,3598.4,1.58436485]
[1732924346075,0.05293188,3599.1,3598.7,2.77877]
[1732924348028,0.05293188,3599.1,3598.5,2.77893]
[1732924348226,0.05293188,3599.1,3598.6,2.77885]
[1732924352765,0.05293188,3599.1,3598.7,2.77875]
[1732924352945,0.05293188,3599.1,3598.7,3.139165]
[1732924353271,0.05246611,3599.0,3598.7,2.77875]
[1732924353469,0.3458,3599.3,3598.7,2.77875]
[1732924353675,0.05266493,3599.2,3598.7,2.77875]
[1732924353871,0.05266493,3599.2,3598.8,2.77869]
[1732924354086,3.12412,3599.3,3598.8,2.77869]
[1732924354238,0.05253137,3599.1,3598.5,2.77891]
[1732924354438,3.12412,3599.3,3598.7,2.77877]
[1732924354633,0.05254847,3599.2,3598.7,2.77877]
[1732924355051,0.05254847,3599.2,3598.9,2.77862]
[1732924355251,0.3458,3599.3,3598.9,2.77862]
[1732924355552,0.05254847,3599.2,3598.9,2.77862]
[1732924355937,0.3458,3599.3,3598.9,2.77862]
[1732924356140,0.05253137,3599.1,3598.9,2.77862]
[1732924356442,0.05251427,3599.0,3598.9,2.77862]
[1732924356641,0.3458,3599.3,3598.9,2.77862]
[1732924356864,0.05252827,3599.2,3598.9,2.77862]
[1732924357050,0.3458,3599.3,3598.9,2.77862]
[1732924357357,0.05255354,3599.2,3598.9,2.77862]
[1732924357764,0.3458,3599.3,3598.9,2.77862]
[1732924358273,0.05255354,3599.2,3598.9,2.77862]
[1732924358441,0.3458,3599.3,3598.9,2.77862]
[1732924358642,0.05255354,3599.2,3598.9,2.77862]
[1732924358839,0.3458,3599.3,3598.4,0.8254]
[1732924358840,0.3458,3599.3,3598.8,2.77865]
[1732924359081,0.05255354,3599.2,3598.8,2.77865]
[1732924359442,3.12413,3599.3,3598.7,2.77875]
[1732924359642,3.12413,3599.3,3598.6,2.77884]
[1732924359643,0.05255354,3599.2,3598.6,2.77884]
[1732924359883,0.05255354,3599.2,3598.8,2.77868]
[1732924360481,0.05253644,3599.1,3598.6,3.139264]
[1732924360691,0.05253644,3599.1,3598.8,2.77868]
[1732924360986,0.3458,3599.3,3598.8,2.77865]
[1732924361485,0.05254604,3599.2,3598.8,2.77865]
[1732924361646,0.05254604,3599.2,3599.1,3.55287]
[1732924361985,2.77804,3599.7,3599.2,2.77839]
[1732924362138,2.77804,3599.7,3599.1,0.7744]
[1732924362342,2.83082511,3599.6,3599.1,0.7744]
[1732924362782,2.77817,3599.5,3599.1,0.7744]
[1732924363288,0.05271428,3599.4,3599.1,0.7744]
[1732924365146,4.54179154,3600.1,3600.0,4.04527572]
[1732924365539,3.98383851,3600.1,3600.0,4.04527572]
[1732924366698,4.03498515,3600.1,3600.0,4.04527572]
[1732924367962,2.97699,3601.1,3600.0,4.04527572]
[1732924367963,0.29038168,3602.1,3600.2,5.70262]
[1732924368162,2.77559,3602.9,3601.8,2.77638]
[1732924368405,1.20611851,3603.2,3601.8,2.77636]
[1732924368711,1.20611851,3603.2,3601.4,0.7754]
[1732924368859,2.77615,3602.2,3601.4,0.7754]
[1732924369061,2.77559,3602.9,3601.0,2.77698]
[1732924369062,2.7763,3602.0,3601.0,0.7754]
[1732924369295,0.03465037,3602.1,3601.2,2.77678]
[1732924369469,0.03461623,3601.9,3601.0,0.7754]
[1732924369667,2.77585,3602.5,3601.0,0.7754]
[1732924369668,2.776,3602.3,3601.3,2.7767]
[1732924369857,0.58893922,3602.2,3601.4,2.77667]
[1732924370080,0.58893922,3602.2,3601.3,1.20611851]
[1732924370287,0.03375422,3602.2,3601.7,2.7764]
[1732924370684,0.03375422,3602.2,3601.5,2.7766]
[1732924371003,2.77578,3602.6,3601.5,2.7766]
[1732924371298,0.55185452,3603.1,3601.3,2.77676]
[1732924371299,2.77585,3602.5,3601.4,2.77665]
[1732924371509,0.555154,3602.4,3601.4,2.77665]
[1732924371819,0.555154,3602.4,3601.3,2.77676]
[1732924372097,0.03396073,3602.3,3601.3,2.77676]
[1732924372399,0.03396073,3602.3,3601.4,2.77668]
[1732924372873,0.03396073,3602.3,3601.2,2.77682]
[1732924373091,0.03396073,3602.3,3601.2,3.409741]
[1732924373811,0.03396073,3602.3,3601.3,2.77675]
[1732924374387,0.03396073,3602.3,3601.2,3.409751]
[1732924374931,0.03396073,3602.3,3601.3,2.77675]
[1732924377813,2.80998073,3602.3,3601.2,3.409731]
[1732924378016,3.4240872,3602.3,3601.2,3.409731]
[1732924378331,2.77609,3602.2,3601.2,3.409751]
[1732924378838,2.77675,3601.4,3600.4,3.55284]
[1732924379001,2.77675,3601.4,3600.5,3.0]
[1732924379186,0.03386753,3601.3,3600.4,3.7754]
[1732924379391,2.77615,3602.1,3600.4,0.7754]
[1732924379726,2.77615,3602.1,3600.0,4.04527572]
[1732924379727,2.77679,3601.3,3600.0,7.59841572]
[1732924380033,2.77701,3601.0,3600.0,7.59841572]
[1732924380202,0.03383848,3600.9,3600.2,2.7776]
[1732924380407,2.77685,3601.2,3600.2,2.7776]
[1732924380604,2.77697,3601.1,3600.1,2.77769]
[1732924380919,2.77707,3601.0,3600.1,2.77769]
[1732924381124,2.77707,3601.0,3600.1,4.07098705]
[1732924381306,0.03377582,3600.9,3600.1,4.07098705]
[1732924382720,0.03377582,3600.9,3600.2,2.77759]
[1732924383125,2.77693,3601.1,3600.2,2.77759]
[1732924383345,0.03380282,3600.8,3600.2,2.77759]
[1732924383651,0.03378575,3600.7,3600.2,4.20019876]
[1732924383810,2.77693,3601.1,3600.2,4.20019876]
[1732924384143,0.03383698,3601.0,3600.2,4.20019876]
[1732924384530,0.03383698,3601.0,3600.3,2.77754]
[1732924384732,2.77711,3600.9,3600.2,1.42260876]
[1732924384948,2.77711,3600.9,3600.0,7.59843572]
[1732924385248,0.03376546,3600.8,3600.0,7.59843572]
[1732924385436,0.03376546,3600.8,3600.3,0.56381396]
[1732924389326,0.03376546,3600.8,3600.0,7.59842572]
[1732924389652,0.03376546,3600.8,3600.1,1.86106427]
[1732924390017,0.03376546,3600.8,3600.1,4.63875427]
[1732924390213,2.77685,3601.2,3600.1,4.63875427]
[1732924390419,2.7769,3601.2,3600.3,2.7775]
[1732924390643,2.7769,3601.2,3600.3,4.001193]
[1732924390844,0.0336878,3601.1,3600.3,4.001193]
[1732924391015,2.8106378,3601.1,3600.4,0.41326725]
[1732924391221,2.8106378,3601.1,3600.1,3.34545022]
[1732924391222,2.77701,3601.0,3600.5,0.41326725]
[1732924391452,2.77701,3601.0,3600.6,0.41326725]
[1732924391754,0.03369368,3600.9,3600.7,0.41326725]
[1732924391956,0.03369368,3600.9,3600.2,2.77761]
[1732924392133,2.77694,3601.1,3600.2,4.12766107]
[1732924392454,0.03382047,3601.0,3600.2,4.12766107]
[1732924392843,2.81082047,3601.0,3600.2,4.12766107]
[1732924393015,2.77709,3600.9,3600.2,1.35005107]
[1732924393214,2.77708,3600.9,3600.2,1.35005107]
[1732924393419,0.03378631,3600.8,3600.1,3.34544022]
[1732924393739,2.77695,3601.1,3600.1,3.34544022]
[1732924394118,0.03371743,3601.0,3600.1,3.34544022]
[1732924394359,0.03371743,3601.0,3600.1,0.56776022]
[1732924394564,0.03371743,3601.0,3600.2,2.77761]
[1732924395636,0.03371743,3601.0,3600.2,3.18381022]
[1732924395842,0.03371743,3601.0,3600.3,0.25896575]
[1732924396043,0.03371743,3601.0,3600.2,3.18381022]
[1732924397179,0.03371743,3601.0,3600.2,0.40620022]
[1732924397377,0.03371743,3601.0,3600.3,2.77754]
[1732924398647,0.03371743,3601.0,3600.4,2.77745]
[1732924398849,3.34416526,3601.9,3600.3,3.97614772]
[1732924398850,0.2,3603.1,3600.6,4.7982813]
[1732924399067,2.77655,3601.6,3600.8,2.7771]
[1732924399245,0.03166338,3601.5,3600.8,2.7771]
[1732924400280,0.03162286,3601.4,3600.8,2.7771]
[1732924400578,2.77648,3601.7,3600.8,2.7771]
[1732924400783,0.03161245,3601.3,3600.8,2.7771]
[1732924400953,2.77648,3601.7,3600.8,3.53463813]
[1732924401154,0.03159538,3601.2,3600.8,2.7771]
[1732924401352,2.77654,3601.6,3600.8,2.7771]
[1732924401555,0.03159722,3601.1,3600.7,2.77723]
[1732924401877,2.77662,3601.5,3600.6,4.7982813]
[1732924402036,0.03167714,3601.4,3600.7,2.77722]
[1732924404079,0.03167714,3601.4,3600.8,3.32715]
[1732924404387,2.77655,3601.6,3600.7,0.55]
[1732924404579,0.03166006,3601.3,3600.7,3.32723]
[1732924404784,2.77655,3601.6,3600.7,3.32723]
[1732924405286,0.03168827,3601.5,3600.7,3.32723]
[1732924405446,0.03168827,3601.5,3600.7,4.22752852]
[1732924405779,0.03168827,3601.5,3600.9,0.55]
[1732924405984,0.03168827,3601.5,3601.0,0.51953503]
[1732924406183,0.03168827,3601.5,3600.9,0.55]
[1732924406341,2.80832827,3601.5,3601.0,0.51970469]
[1732924406543,2.80832827,3601.5,3601.1,0.51970469]
[1732924406884,2.80832827,3601.5,3601.2,0.51970469]
[1732924407079,2.80832827,3601.5,3601.3,0.51970469]
[1732924407285,0.03168827,3601.5,3601.4,0.51970469]
[1732924408149,0.03168827,3601.5,3601.4,1.06970469]
[1732924408567,2.80830827,3601.5,3601.4,1.06970469]
[1732924412251,2.80830827,3601.5,3601.4,1.07021234]
[1732924415396,2.80830827,3601.5,3601.4,1.07012421]
[1732924416161,2.80830827,3601.5,3601.4,0.55]
[1732924417068,2.80830827,3601.5,3601.2,0.55]
[1732924417266,2.7767,3601.4,3601.2,0.55]
[1732924417701,0.03162802,3601.3,3601.2,0.55]
[1732924419902,0.03162802,3601.3,3600.9,0.55]
[1732924420104,2.7776,3600.3,3600.0,4.04527572]
[1732924420258,2.77763,3600.2,3600.0,4.04527572]
[1732924420595,2.7777,3600.1,3600.0,4.04527572]
[1732924421166,2.80918316,3600.1,3600.0,4.04527572]
[1732924425768,2.80918316,3600.1,3600.0,4.59527572]
[1732924429398,2.80918316,3600.1,3600.0,4.04527572]
[1732924431030,0.03148316,3600.1,3600.0,4.59527572]
[1732924431342,2.77701,3601.0,3600.1,0.55]
[1732924431518,2.7776,3600.3,3600.1,0.55]
[1732924431725,2.7774,3600.5,3600.1,0.55]
[1732924432247,2.77748,3600.4,3600.1,0.55]
[1732924432448,2.80742841,3600.4,3600.1,0.55]
[1732924433051,2.77754,3600.3,3600.1,0.55]
[1732924433410,0.02991422,3600.2,3600.1,0.55]
[1732924434155,2.77754,3600.3,3600.1,0.55]
[1732924434357,0.02991422,3600.2,3600.1,0.55]
[1732924434784,2.77754,3600.3,3600.1,0.55]
[1732924434967,0.02991422,3600.2,3600.1,0.55]
[1732924435256,2.80753422,3600.2,3600.0,4.04527572]
[1732924435425,3.05845342,3600.1,3600.0,4.04527572]
[1732924435752,3.08835055,3600.1,3600.0,4.04527572]
[1732924441460,7.29227185,3600.1,3600.0,4.04527572]
[1732924441749,6.08835055,3600.1,3600.0,4.04527572]
[1732924448079,3.08835055,3600.1,3600.0,4.04527572]
[1732924448285,2.80759713,3600.1,3600.0,4.04527572]
[1732924449591,7.01151843,3600.1,3600.0,5.72e-06]
[1732924450766,5.80759713,3600.1,3600.0,5.72e-06]
[1732924450946,7.01151843,3600.1,3600.0,5.72e-06]
[1732924467794,5.80759713,3600.1,3600.0,5.72e-06]
[1732924468093,7.01151843,3600.1,3600.0,5.72e-06]
[1732924469391,5.80759713,3600.1,3600.0,5.72e-06]
[1732924469691,4.01151843,3600.1,3600.0,5.72e-06]
[1732924471187,7.01151843,3600.1,3600.0,5.72e-06]
[1732924481515,5.80759713,3600.1,3600.0,5.72e-06]
[1732924481828,5.80759713,3600.1,3600.0,0.26028621]
[1732924482183,5.80759713,3600.1,3600.0,0.26028588]
[1732924482529,5.80759713,3600.1,3600.0,5.72e-06]
[1732924495311,7.01151843,3600.1,3600.0,5.72e-06]
[1732924500130,5.80759713,3600.1,3600.0,5.72e-06]
[1732924500654,2.80759713,3600.1,3600.0,0.76740572]
[1732924500940,2.80759713,3600.1,3600.0,1.02770503]
[1732924502046,2.80759713,3600.1,3600.0,1.57767662]
[1732924502214,0.02989713,3600.1,3600.0,1.57767662]
[1732924503236,2.80759713,3600.1,3600.0,1.57767662]
[1732924503541,0.02989713,3600.1,3600.0,1.57767662]
[1732924505016,1.2039213,3600.9,3600.0,1.73544428]
[1732924505222,2.77747,3600.4,3600.1,0.8102709]
[1732924505442,2.77728,3600.7,3600.5,0.55]
[1732924505754,2.77728,3600.7,3600.6,0.7956]
[1732924506050,2.77728,3600.7,3600.6,1.3456]
[1732924506512,0.02806833,3600.7,3600.6,1.3456]
[1732924506714,2.77716,3600.8,3600.7,0.55]
[1732924507052,2.77754,3600.3,3600.2,1.3456]
[1732924507542,2.80566027,3600.3,3600.2,1.3456]
[1732924511260,0.02812027,3600.3,3600.2,1.3456]
[1732924511473,1.2039213,3600.8,3600.3,0.55]
[1732924511670,2.77746,3600.4,3600.3,0.55]
[1732924514137,2.80555544,3600.4,3600.3,0.55]